bitfinex/quotes_SOLUSD_20230111
["timestamp","ask_amount","ask_price","bid_price","bid_amount"]
[1673411929954,144.5341,16.0,15.986,17.0]
[1673411930271,20.0,15.999,15.987,20.0]
[1673411930460,144.5341,16.0,15.988,17.0]
[1673411930668,144.5341,16.0,15.989,20.0]
[1673411930881,144.5341,16.0,15.99,17.0]
[1673411933719,20.96,15.999,15.99,17.0]
[1673411934158,144.5341,16.0,15.99,17.0]
[1673411934895,0.96,15.999,15.99,19.536]
[1673411937943,144.5241,16.0,15.99,17.0]
[1673411939297,144.5241,16.0,15.99,21.967]
[1673411940471,144.5241,16.0,15.99,17.0]
[1673411942339,26.43,16.0,15.99,17.0]
[1673411942555,46.87,16.007,15.991,20.83]
[1673411942760,46.86,16.009,15.992,17.0]
[1673411942989,40.0,16.008,15.993,42.41]
[1673411943201,40.0,16.008,15.994,17.0]
[1673411943400,46.87,16.007,15.994,17.0]
[1673411943614,20.0,16.006,15.994,17.0]
[1673411944560,20.0,16.004,15.994,17.0]
[1673411944762,0.96,16.003,15.994,17.0]
[1673411945604,66.87,16.006,15.994,17.0]
[1673411945813,0.96,16.005,15.994,17.0]
[1673411946760,0.96,16.005,15.993,17.0]
[1673411946987,0.96,16.005,15.993,34.14]
[1673411952668,0.96,16.005,15.993,17.0]
[1673411959380,26.5,16.0,15.989,20.0]
[1673411959591,26.5,16.0,15.988,20.0]
[1673411959798,0.96,15.999,15.988,20.0]
[1673411960984,26.5,16.0,15.988,20.0]
[1673411962146,26.5,16.0,15.989,17.0]
[1673411962335,26.4,16.0,15.989,17.0]
[1673411962764,0.96,15.999,15.989,17.0]
[1673411963505,97.21974403,15.998,15.983,5.2035674]
[1673411963818,26.58,15.99,15.983,5.2035674]
[1673411964037,0.96,15.989,15.983,5.2035674]
[1673411964228,20.96,15.989,15.983,5.2035674]
[1673411966122,20.96,15.989,15.984,17.0]
[1673411969482,20.96,15.989,15.983,5.2035674]
[1673411971789,26.81,15.99,15.983,5.2035674]
[1673411972030,26.81,15.99,15.984,17.0]
[1673411974142,20.0,15.989,15.984,17.0]
[1673411974570,26.81,15.99,15.984,17.0]
[1673411975817,112.6537,15.992,15.984,17.0]
[1673411976353,20.0,15.996,15.985,6.436]
[1673411976672,20.0,15.996,15.986,17.0]
[1673411977286,20.0,15.996,15.985,17.0]
[1673411978754,0.96,15.995,15.985,17.0]
[1673411979419,0.96,15.995,15.986,12.88]
[1673411979592,0.96,15.995,15.987,17.0]
[1673411989603,20.0,15.998,15.988,20.0]
[1673411989810,20.0,15.999,15.988,20.96]
[1673411990013,139.4637,16.0,15.989,19.572]
[1673411990226,139.4637,16.0,15.989,34.10874567]
[1673411990437,139.4637,16.0,15.99,20.96]
[1673411990647,139.4637,16.0,15.991,4.828]
[1673411990878,139.4637,16.0,15.992,17.0]
[1673411993186,26.81,16.0,15.992,17.0]
[1673411993383,26.81,16.0,15.993,39.93]
[1673411993594,20.0,16.007,15.993,39.93]
[1673411994665,20.0,16.007,15.994,17.0]
[1673411994879,20.0,16.007,15.995,20.74]
[1673411995065,66.87,16.007,15.994,21.19]
[1673411995498,66.87,16.007,15.993,20.0]
[1673411995906,0.96,16.006,15.993,20.0]
[1673411996115,0.96,16.006,15.994,17.0]
[1673411996330,0.96,16.006,15.991,21.4]
[1673411996546,46.87,16.005,15.991,21.4]
[1673411997071,0.96,16.004,15.991,21.4]
[1673411997299,20.0,16.005,15.991,21.4]
[1673411997476,0.96,16.003,15.991,21.4]
[1673411997687,46.88,16.004,15.99,40.19]
[1673411997917,0.96,16.003,15.991,18.92]
[1673411998127,46.87,16.006,15.993,20.0]
[1673411998330,46.87,16.006,15.994,36.12]
[1673411998331,0.96,16.005,15.994,36.12]
[1673411998655,46.87,16.006,15.994,36.12]
[1673411998847,66.87,16.007,15.994,17.0]
[1673411999056,20.0,16.007,15.994,36.34]
[1673411999811,0.96,16.006,15.994,36.34]
[1673412000845,0.96,16.006,15.994,17.0]
[1673412001055,0.96,16.006,15.993,17.0]
[1673412001271,0.96,16.006,15.994,14.63]
[1673412001578,20.0,16.005,15.995,17.0]
[1673412001799,0.96,16.004,15.993,17.0]
[1673412003055,26.55,16.0,15.988,29.149]
[1673412003269,20.0,15.999,15.988,20.0]
[1673412003481,20.0,15.999,15.987,29.15]
[1673412003689,26.55,16.0,15.988,20.0]
[1673412003907,26.55,16.0,15.989,29.394]
[1673412005268,26.55,16.0,15.99,20.0]
[1673412005486,112.7099,16.002,15.991,10.74]
[1673412006013,112.7099,16.002,15.992,17.0]
[1673412008943,112.7099,16.002,15.991,10.74]
[1673412009143,20.0,16.001,15.99,27.5]
[1673412010196,20.0,16.001,15.991,17.0]
[1673412013261,112.7099,16.002,15.991,17.0]
[1673412013578,112.7099,16.002,15.992,31.88]
[1673412013772,112.7099,16.002,15.993,17.0]
[1673412013773,20.0,16.001,15.993,17.0]
[1673412013987,20.0,16.001,15.99,37.62]
[1673412014302,20.0,16.001,15.989,20.0]
[1673412014511,66.88,16.001,15.988,20.0]
[1673412015467,66.88,16.001,15.989,17.0]
[1673412015868,66.88,16.001,15.988,20.0]
[1673412017137,46.88,16.001,15.988,20.0]
[1673412017357,112.7099,16.002,15.989,38.92]
[1673412017671,112.7099,16.002,15.99,43.63]
[1673412017879,112.7099,16.002,15.992,20.0]
[1673412018072,112.7099,16.002,15.993,17.0]
[1673412019775,20.0,16.001,15.993,17.0]
[1673412020594,112.7099,16.002,15.993,17.0]
[1673412021248,20.0,16.001,15.993,17.0]
[1673412023557,112.7099,16.002,15.993,17.0]
[1673412023875,112.7099,16.002,15.992,17.0]
[1673412025649,112.7099,16.002,15.989,14.53674567]
[1673412025650,46.88,16.001,15.989,14.53674567]
[1673412025854,20.0,15.999,15.989,14.53674567]
[1673412026070,20.0,15.999,15.985,46.93]
[1673412026294,20.0,15.999,15.987,20.0]
[1673412026615,66.89,15.999,15.987,20.0]
[1673412026806,66.89,15.999,15.988,17.0]
[1673412027020,66.89,15.999,15.989,20.0]
[1673412027428,66.89,15.999,15.99,17.0]
[1673412027642,46.89,15.999,15.99,17.0]
[1673412028072,26.49,16.0,15.99,17.0]
[1673412028713,46.88,16.001,15.99,17.0]
[1673412029026,112.7099,16.002,15.99,17.0]
[1673412031111,112.7099,16.002,15.989,20.0]
[1673412031320,112.7099,16.002,15.988,20.0]
[1673412031536,20.0,16.001,15.988,20.0]
[1673412031755,66.88,16.001,15.988,20.0]
[1673412032365,66.88,16.001,15.989,17.0]
[1673412035211,46.88,16.001,15.989,17.0]
[1673412035435,46.88,16.001,15.99,21.92]
[1673412035641,112.7099,16.002,15.99,21.92]
[1673412035642,112.7099,16.002,15.991,17.0]
[1673412035859,20.0,16.001,15.991,17.0]
[1673412036063,66.88,16.001,15.99,17.0]
[1673412036388,20.0,16.001,15.99,17.0]
[1673412037104,66.88,16.001,15.99,17.0]
[1673412038152,46.88,16.001,15.99,17.0]
[1673412039007,112.7099,16.002,15.991,1.92]
[1673412040162,46.88,16.001,15.991,1.92]
[1673412040374,112.7099,16.002,15.991,1.92]
[1673412040581,112.7099,16.002,15.99,17.0]
[1673412040793,46.88,16.001,15.99,17.0]
[1673412044484,112.7099,16.002,15.99,17.0]
[1673412044797,46.84,16.017,15.991,138.2841345]
[1673412045114,46.83,16.019,15.993,32.67949784]
[1673412045300,137.1537,16.02,16.0,26.7]
[1673412045511,137.1537,16.02,16.001,67.84]
[1673412045721,20.0,16.019,16.003,20.0]
[1673412045947,20.0,16.019,16.004,64.84]
[1673412046160,20.0,16.019,16.005,20.0]
[1673412046360,66.83,16.019,16.006,17.0]
[1673412046686,20.0,16.019,16.007,20.0]
[1673412046877,20.0,16.019,16.008,17.0]
[1673412047089,20.0,16.019,16.009,20.0]
[1673412047296,66.83,16.019,16.002,111.8368]
[1673412047506,20.0,16.018,16.002,111.8368]
[1673412047733,67.8,16.017,16.002,111.8368]
[1673412049423,67.8,16.017,16.003,17.0]
[1673412049737,67.8,16.017,16.002,111.8368]
[1673412051108,67.8,16.017,16.003,17.0]
[1673412052591,67.8,16.017,16.003,37.0]
[1673412053197,0.08031382,31.987,16.003,37.0]
[1673412053417,47.65192469,16.029,16.01,106.8]
[1673412053620,26.87,16.04,16.011,91.06658]
[1673412053845,26.87,16.04,16.012,29.12613]
[1673412054167,47.27,16.039,16.013,149.21003493]
[1673412054477,47.27,16.039,16.014,9.12523]
[1673412054682,47.27,16.039,16.02,26.7]
[1673412055004,47.27,16.039,16.021,178.5215]
[1673412055317,20.0,16.038,16.022,34.53674567]
[1673412055529,20.0,16.038,16.023,64.78]
[1673412055718,20.0,16.038,16.023,78.35674567]
[1673412055934,46.78,16.037,16.023,17.0]
[1673412056144,46.78,16.037,16.022,17.0]
[1673412056359,46.78,16.037,16.022,37.0]
[1673412056558,46.78,16.037,16.023,20.0]
[1673412056783,46.78,16.038,16.024,17.0]
[1673412056984,0.96,16.036,16.024,17.0]
[1673412057314,46.78,16.038,16.024,17.0]
[1673412057626,46.78,16.038,16.025,20.0]
[1673412057834,0.5,16.039,16.026,18.92]
[1673412058043,20.5,16.039,16.026,18.92]
[1673412058255,0.5,16.039,16.027,40.0]
[1673412058476,0.5,16.039,16.028,65.73]
[1673412058660,0.5,16.039,16.029,40.0]
[1673412058874,0.5,16.039,16.03,63.8]
[1673412060557,20.5,16.039,16.021,112.7715]
[1673412060763,20.0,16.037,16.021,112.7715]
[1673412061080,20.0,16.035,16.021,112.7715]
[1673412061294,20.0,16.035,16.022,46.82]
[1673412061715,66.78,16.037,16.023,20.0]
[1673412061920,66.78,16.037,16.024,63.82]
[1673412062550,66.78,16.037,16.024,46.82]
[1673412062757,0.96,16.036,16.023,46.82]
[1673412063802,0.96,16.036,16.024,17.0]
[1673412064225,0.5,16.039,16.025,87.77]
[1673412064459,0.5,16.039,16.026,17.96]
[1673412064645,0.5,16.039,16.027,46.81]
[1673412064863,0.5,16.039,16.026,17.0]
[1673412065075,20.0,16.037,16.026,17.0]
[1673412065403,20.0,16.035,16.026,17.0]
[1673412065606,0.96,16.034,16.026,17.0]
[1673412067291,46.78,16.036,16.026,17.0]
[1673412068257,46.78,16.037,16.026,17.0]
[1673412068656,46.78,16.037,16.025,17.0]
[1673412069082,46.78,16.037,16.024,17.0]
[1673412069291,20.0,16.036,16.024,17.0]
[1673412069723,0.96,16.035,16.024,17.0]
[1673412072563,20.0,16.037,16.024,17.0]
[1673412072759,0.96,16.036,16.024,17.0]
[1673412073918,0.96,16.036,16.025,46.81]
[1673412074127,0.96,16.036,16.026,17.0]
[1673412074542,0.5,16.039,16.027,46.81]
[1673412074756,0.5,16.039,16.028,37.0]
[1673412074962,0.5,16.039,16.029,66.8]
[1673412075169,0.5,16.039,16.03,17.0]
[1673412075395,0.5,16.039,16.032,20.0]
[1673412075607,0.5,16.039,16.031,46.8]
[1673412075916,0.5,16.039,16.032,17.0]
[1673412076439,0.5,16.039,16.031,17.0]
[1673412076635,20.5,16.039,16.03,46.8]
[1673412076847,20.96,16.038,16.024,46.82]
[1673412077296,20.96,16.038,16.025,20.0]
[1673412077528,20.96,16.038,16.026,46.81]
[1673412077839,20.96,16.038,16.027,17.0]
[1673412078997,20.96,16.038,16.028,20.0]
[1673412079189,20.0,16.037,16.029,17.0]
[1673412079531,20.5,16.039,16.029,17.0]
[1673412081809,0.5,16.039,16.029,17.0]
[1673412082041,0.5,16.039,16.03,46.8]
[1673412082234,0.5,16.039,16.031,17.0]
[1673412082444,0.5,16.039,16.032,46.79]
[1673412082969,0.5,16.039,16.033,17.0]
[1673412083175,0.5,16.039,16.031,17.0]
[1673412083406,0.96,16.038,16.03,17.0]
[1673412084337,0.96,16.038,16.031,46.8]
[1673412084568,0.96,16.038,16.032,17.0]
[1673412085299,0.96,16.038,16.028,112.6765]
[1673412085495,0.96,16.038,16.029,20.0]
[1673412085912,0.96,16.038,16.026,46.81]
[1673412086123,20.96,16.038,16.026,46.81]
[1673412086561,20.96,16.038,16.027,17.0]
[1673412086753,131.6808,16.038,16.028,46.81]
[1673412087064,20.0,16.037,16.026,46.81]
[1673412087486,0.96,16.036,16.026,46.81]
[1673412088139,0.96,16.036,16.027,17.0]
[1673412088454,0.96,16.036,16.028,20.0]
[1673412088663,130.7208,16.038,16.029,17.0]
[1673412088977,0.96,16.037,16.029,17.0]
[1673412096440,130.7208,16.038,16.029,17.0]
[1673412098433,110.7208,16.038,16.03,20.0]
[1673412098638,0.5,16.039,16.031,63.8]
[1673412099490,0.5,16.039,16.032,20.0]
[1673412099683,0.5,16.039,16.033,17.0]
[1673412102639,0.5,16.039,16.031,155.6419]
[1673412102844,0.5,16.039,16.031,108.8419]
[1673412103984,20.5,16.039,16.028,46.81]
[1673412104218,20.0,16.038,16.026,46.81]
[1673412104522,20.0,16.037,16.026,46.81]
[1673412105148,137.4866,16.038,16.026,46.81]
[1673412105561,137.4866,16.038,16.027,20.0]
[1673412105771,137.4866,16.038,16.028,46.81]
[1673412105987,137.4866,16.038,16.029,20.0]
[1673412106191,137.4866,16.038,16.03,17.0]
[1673412106621,137.4866,16.038,16.028,46.81]
[1673412106946,20.0,16.037,16.026,46.81]
[1673412107373,137.4866,16.038,16.026,46.81]
[1673412107571,20.0,16.037,16.027,20.0]
[1673412107895,20.0,16.037,16.028,63.81]
[1673412108089,137.4866,16.038,16.028,63.81]
[1673412109368,20.0,16.038,16.028,63.81]
[1673412109681,20.5,16.039,16.028,63.81]
[1673412114628,20.0,16.038,16.028,63.81]
[1673412114848,20.0,16.037,16.028,63.81]
[1673412117145,20.5,16.039,16.028,63.81]
[1673412117675,20.0,16.038,16.028,63.81]
[1673412117997,20.0,16.037,16.028,17.0]
[1673412118185,20.0,16.037,16.027,17.0]
[1673412118400,0.96,16.036,16.028,46.81]
[1673412118611,10.96,16.037,16.029,17.0]
[1673412119455,10.96,16.037,16.026,46.81]
[1673412119680,10.96,16.037,16.025,46.81]
[1673412121036,10.96,16.037,16.026,17.0]
[1673412121360,10.96,16.037,16.027,46.81]
[1673412121549,10.96,16.037,16.028,17.0]
[1673412121763,10.96,16.037,16.027,46.81]
[1673412121974,10.96,16.037,16.025,46.81]
[1673412123449,10.96,16.037,16.026,17.0]
[1673412127754,10.96,16.037,16.027,46.81]
[1673412128085,10.96,16.037,16.028,17.0]
[1673412128822,10.96,16.037,16.027,37.0]
[1673412130068,10.96,16.037,16.028,46.81]
[1673412130296,10.96,16.037,16.029,17.0]
[1673412131010,0.5,16.039,16.03,46.8]
[1673412131237,0.5,16.039,16.031,37.0]
[1673412131439,0.5,16.039,16.032,46.79]
[1673412131635,0.5,16.039,16.033,17.0]
[1673412133551,0.5,16.039,16.034,20.0]
[1673412133745,0.5,16.039,16.035,17.0]
[1673412134174,0.5,16.039,16.032,166.6967]
[1673412134386,0.5,16.039,16.033,17.0]
[1673412137223,0.5,16.039,16.033,63.79]
[1673412138995,0.5,16.039,16.033,46.79]
[1673412139643,0.5,16.039,16.032,119.9067]
[1673412140275,0.5,16.039,16.033,46.79]
[1673412140479,0.5,16.039,16.034,17.0]
[1673412141750,179.33,16.05,16.035,66.78]
[1673412141942,20.0,16.046,16.036,17.0]
[1673412142152,20.0,16.046,16.037,46.78]
[1673412142693,20.0,16.046,16.036,17.0]
[1673412142888,20.0,16.046,16.035,17.0]
[1673412143100,20.0,16.046,16.036,46.78]
[1673412143310,20.0,16.046,16.037,17.0]
[1673412143724,20.0,16.046,16.034,46.79]
[1673412143939,67.25996692,16.046,16.033,46.79]
[1673412144149,114.00996692,16.046,16.033,46.79]
[1673412144572,26.31,16.04,16.032,119.9067]
[1673412145427,20.0,16.039,16.032,119.9067]
[1673412145833,17.0,16.038,16.026,46.81]
[1673412146055,66.78,16.037,16.021,157.0134]
[1673412146374,26.5,16.03,16.021,157.0134]
[1673412147833,26.5,16.03,16.022,17.0]
[1673412148054,26.5,16.03,16.023,46.82]
[1673412148461,26.5,16.03,16.024,17.0]
[1673412149519,26.5,16.03,16.022,46.82]
[1673412150889,26.5,16.03,16.023,17.0]
[1673412157091,26.5,16.03,16.023,37.0]
[1673412158463,26.5,16.03,16.023,17.0]
[1673412159494,26.5,16.03,16.023,37.0]
[1673412161720,26.5,16.03,16.023,17.0]
[1673412162565,26.5,16.03,16.022,46.82]
[1673412162878,26.5,16.03,16.023,20.0]
[1673412165711,26.5,16.03,16.022,20.0]
[1673412165923,26.5,16.03,16.021,157.0134]
[1673412167717,26.5,16.03,16.022,20.0]
[1673412167922,26.51,16.03,16.022,20.0]
[1673412168979,26.51,16.03,16.023,46.82]
[1673412169606,26.51,16.03,16.022,66.82]
[1673412170136,26.51,16.03,16.023,17.0]
[1673412176749,26.51,16.03,16.024,46.82]
[1673412176951,86.78,16.037,16.025,17.0]
[1673412177162,86.78,16.037,16.026,20.0]
[1673412178841,66.78,16.037,16.026,20.0]
[1673412179051,20.0,16.036,16.026,20.0]
[1673412179370,20.0,16.036,16.025,46.81]
[1673412181592,40.0,16.037,16.025,46.81]
[1673412181909,20.0,16.036,16.025,46.81]
[1673412182644,20.0,16.036,16.024,20.0]
[1673412183379,20.0,16.036,16.025,46.81]
[1673412184644,40.0,16.037,16.025,46.81]
[1673412184826,26.78,16.04,16.025,46.81]
[1673412185157,26.78,16.04,16.027,20.0]
[1673412185369,48.57669185,16.044,16.028,68.73]
[1673412185686,46.75,16.046,16.028,180.2713]
[1673412185916,46.75,16.046,16.029,118.4039]
[1673412186098,20.0,16.045,16.031,20.0]
[1673412186300,20.0,16.045,16.032,46.79]
[1673412186510,20.0,16.045,16.033,20.0]
[1673412186716,20.0,16.045,16.034,46.79]
[1673412186925,66.75,16.046,16.034,46.79]
[1673412188723,20.0,16.045,16.034,46.79]
[1673412188949,26.56,16.04,16.034,46.79]
[1673412189259,26.56,16.04,16.031,20.0]
[1673412189260,26.56,16.04,16.032,46.79]
[1673412191593,26.56,16.04,16.031,66.8]
[1673412193065,116.78117,16.049,16.031,66.8]
[1673412193260,96.78117,16.049,16.032,1.92]
[1673412193470,95.31669185,16.049,16.033,46.79]
[1673412194331,95.31669185,16.049,16.034,20.0]
[1673412194535,95.31669185,16.049,16.035,46.78]
[1673412195059,95.31669185,16.049,16.036,20.0]
[1673412198733,46.74,16.049,16.036,20.0]
[1673412200842,66.74,16.049,16.036,20.0]
[1673412201907,46.74,16.049,16.036,20.0]
[1673412202112,132.37,16.05,16.036,20.0]
[1673412202319,46.74,16.049,16.036,20.0]
[1673412202848,46.74,16.049,16.038,20.0]
[1673412203037,46.74,16.049,16.037,46.78]
[1673412203248,46.74,16.049,16.036,20.0]
[1673412203489,46.74,16.049,16.035,46.78]
[1673412205036,46.74,16.049,16.036,20.0]
[1673412205456,132.57,16.05,16.036,20.0]
[1673412205889,132.57,16.05,16.037,0.96]
[1673412206111,66.74,16.049,16.037,47.74]
[1673412206312,20.0,16.049,16.038,20.0]
[1673412207787,20.0,16.049,16.036,20.0]
[1673412208099,66.75,16.048,16.035,46.78]
[1673412208293,20.0,16.047,16.035,46.78]
[1673412208940,20.0,16.046,16.034,46.79]
[1673412209355,20.0,16.046,16.03,46.8]
[1673412209680,66.75,16.046,16.03,46.8]
[1673412209894,66.75,16.046,16.031,20.0]
[1673412211149,66.75,16.046,16.03,66.8]
[1673412211341,17.0,16.045,16.03,46.8]
[1673412211551,46.76,16.044,16.03,46.8]
[1673412211763,20.0,16.043,16.03,46.8]
[1673412214404,66.76,16.044,16.03,46.8]
[1673412214405,26.51,16.04,16.03,46.8]
[1673412215456,26.51,16.04,16.031,20.0]
[1673412215664,26.51,16.04,16.032,46.79]
[1673412216600,26.51,16.04,16.031,46.8]
[1673412217224,26.51,16.04,16.03,46.8]
[1673412217438,26.51,16.04,16.029,165.2039]
[1673412219015,26.51,16.04,16.03,20.0]
[1673412224277,26.51,16.04,16.029,165.2039]
[1673412225129,26.51,16.04,16.03,20.0]
[1673412225334,26.51,16.04,16.031,46.8]
[1673412225646,26.51,16.04,16.032,20.0]
[1673412227571,26.51,16.04,16.031,46.8]
[1673412227783,66.76,16.045,16.031,46.8]
[1673412229354,26.38,16.04,16.03,46.8]
[1673412232285,26.38,16.04,16.031,20.0]
[1673412232605,26.38,16.04,16.032,46.79]
[1673412233463,26.38,16.04,16.033,17.0]
[1673412234931,26.38,16.04,16.034,17.0]
[1673412236709,26.38,16.04,16.031,46.8]
[1673412236921,26.38,16.04,16.03,46.8]
[1673412237331,26.38,16.04,16.031,17.0]
[1673412237543,26.38,16.04,16.032,46.79]
[1673412237875,26.38,16.04,16.03,46.8]
[1673412238082,26.38,16.04,16.031,17.0]
[1673412239656,26.38,16.04,16.032,46.79]
[1673412240077,20.0,16.039,16.03,46.8]
[1673412240503,20.0,16.039,16.029,46.8]
[1673412240707,20.0,16.039,16.026,46.81]
[1673412240919,20.0,16.039,16.029,46.8]
[1673412242697,83.78,16.038,16.022,46.82]
[1673412242907,297.36215798,16.038,16.022,46.82]
[1673412243117,20.0,16.036,16.022,46.82]
[1673412243345,46.78,16.035,16.022,46.82]
[1673412243554,20.0,16.034,16.022,46.82]
[1673412244182,20.0,16.034,16.023,17.0]
[1673412244505,20.0,16.034,16.022,46.82]
[1673412246175,20.0,16.034,16.021,164.0705]
[1673412246907,26.52,16.03,16.021,164.0705]
[1673412247120,26.52,16.03,16.017,46.84]
[1673412247439,21.92494168,16.029,16.018,20.0]
[1673412247658,20.0,16.029,16.019,46.83]
[1673412248061,1.58379113,16.028,16.018,20.0]
[1673412248270,20.0,16.029,16.019,46.83]
[1673412248496,1.53724117,16.028,16.019,46.83]
[1673412248688,1.53724117,16.028,16.018,20.0]
[1673412248895,26.52,16.03,16.018,20.0]
[1673412249215,26.52,16.03,16.019,20.0]
[1673412249870,26.52,16.03,16.018,40.0]
[1673412250058,26.52,16.03,16.018,20.0]
[1673412250593,20.0,16.029,16.018,20.0]
[1673412251851,46.52,16.03,16.018,20.0]
[1673412252068,26.52,16.03,16.018,20.0]
[1673412252288,1.5491586,16.029,16.02,20.0]
[1673412252488,26.52,16.03,16.02,20.0]
[1673412252812,26.52,16.03,16.021,46.83]
[1673412254370,26.52,16.03,16.019,46.83]
[1673412255003,1.5697032,16.029,16.019,46.83]
[1673412255216,26.52,16.03,16.019,46.83]
[1673412255435,1.58263792,16.029,16.019,46.83]
[1673412255629,26.52,16.03,16.019,46.83]
[1673412258355,26.52,16.03,16.02,20.0]
[1673412258585,26.52,16.03,16.021,46.83]
[1673412260467,26.52,16.03,16.022,17.0]
[1673412263099,26.52,16.03,16.021,46.83]
[1673412263636,26.52,16.03,16.022,17.0]
[1673412267631,66.79,16.034,16.023,20.0]
[1673412268256,46.78,16.035,16.024,17.0]
[1673412268475,46.78,16.036,16.024,17.0]
[1673412268680,129.0398,16.038,16.026,20.0]
[1673412268890,129.0398,16.038,16.027,63.81]
[1673412269210,129.0398,16.038,16.028,20.0]
[1673412269420,129.0398,16.038,16.029,17.0]
[1673412270267,109.0398,16.038,16.029,17.0]
[1673412270468,109.0398,16.038,16.03,46.8]
[1673412270900,109.0398,16.038,16.029,46.8]
[1673412271303,109.0398,16.038,16.03,17.0]
[1673412271526,109.0398,16.038,16.031,46.8]
[1673412271933,109.0398,16.038,16.032,17.0]
[1673412277929,26.35,16.04,16.02,20.0]
[1673412278153,26.38,16.03,16.018,20.0]
[1673412278676,26.38,16.03,16.02,20.0]
[1673412279515,26.38,16.03,16.021,46.83]
[1673412281289,26.38,16.03,16.022,17.0]
[1673412283394,26.38,16.03,16.023,17.0]
[1673412284564,26.38,16.03,16.019,46.83]
[1673412284757,17.0,16.029,16.014,20.0]
[1673412284963,20.0,16.028,16.017,66.84]
[1673412285712,66.81,16.027,16.013,46.85]
[1673412285929,17.0,16.026,16.012,46.85]
[1673412286256,66.81,16.025,16.012,46.85]
[1673412287299,20.0,16.023,16.007,20.0]
[1673412287510,66.82,16.023,16.008,46.86]
[1673412287715,20.0,16.023,16.008,46.86]
[1673412288674,26.52,16.02,16.009,20.0]
[1673412288874,26.52,16.02,16.01,46.86]
[1673412293804,26.52,16.02,16.011,17.0]
[1673412294017,26.52,16.02,16.012,46.85]
[1673412299267,20.0,16.023,16.012,46.85]
[1673412302963,20.0,16.023,16.009,20.0]